[Event "*** Titled Tuesday Blitz"]
[Site "Chess.com"]
[Date "2020.05.26"]
[Round "5"]
[White "TokChess"]
[Black "Olkaa"]
[Result "0-1"]
[WhiteElo "2336"]
[BlackElo "2613"]
[TimeControl "180+1"]
[EndTime "10:57:28 PDT"]
[Termination "Olkaa won on time"]

1. Nf3 {[%clk 0:03:00.2]} 1... c5 {[%clk 0:02:58.4]} 2. g3 {[%clk 0:03:00.4]}
2... Nc6 {[%clk 0:02:58.7]} 3. Bg2 {[%clk 0:02:59.1]} 3... e5 {[%clk 0:02:59.3]}
4. c4 {[%clk 0:02:58]} 4... g6 {[%clk 0:02:59.8]} 5. O-O {[%clk 0:02:58.3]} 5...
Bg7 {[%clk 0:03:00]} 6. Nc3 {[%clk 0:02:58.6]} 6... Nge7 {[%clk 0:03:00.5]} 7.
Ne1 {[%clk 0:02:58.5]} 7... d6 {[%clk 0:02:59.1]} 8. Nc2 {[%clk 0:02:58.7]} 8...
Be6 {[%clk 0:02:58.9]} 9. Ne3 {[%clk 0:02:58.9]} 9... a6 {[%clk 0:02:59.3]} 10.
Ned5 {[%clk 0:02:48.6]} 10... Rb8 {[%clk 0:02:51.1]} 11. a4 {[%clk 0:02:38.9]}
11... O-O {[%clk 0:02:44.8]} 12. d3 {[%clk 0:02:39.2]} 12... Nb4 {[%clk
0:02:35.7]} 13. Nxb4 {[%clk 0:02:31.9]} 13... cxb4 {[%clk 0:02:32.6]} 14. Nd5
{[%clk 0:02:32.8]} 14... Nxd5 {[%clk 0:02:23.8]} 15. cxd5 {[%clk 0:02:31.5]}
15... Bd7 {[%clk 0:02:20.2]} 16. Qb3 {[%clk 0:02:19.3]} 16... a5 {[%clk
0:02:08.6]} 17. Be3 {[%clk 0:02:16.1]} 17... b5 {[%clk 0:02:02.5]} 18. axb5
{[%clk 0:02:15.3]} 18... Rxb5 {[%clk 0:01:53.4]} 19. Rfc1 {[%clk 0:02:11.3]}
19... Qb8 {[%clk 0:01:51]} 20. Rc4 {[%clk 0:01:52.2]} 20... Rc8 {[%clk
0:01:27.9]} 21. Rac1 {[%clk 0:01:44.2]} 21... Rb7 {[%clk 0:01:27.6]} 22. Rxc8+
{[%clk 0:01:40]} 22... Bxc8 {[%clk 0:01:28.5]} 23. Qa4 {[%clk 0:01:09.3]} 23...
Bd7 {[%clk 0:01:23.9]} 24. Qxa5 {[%clk 0:01:02.4]} 24... h5 {[%clk 0:01:15.5]}
25. h4 {[%clk 0:01:02]} 25... Bf6 {[%clk 0:01:14.3]} 26. Rc6 {[%clk 0:00:52.6]}
26... Bd8 {[%clk 0:01:09.8]} 27. Qa6 {[%clk 0:00:45.5]} 27... Bc7 {[%clk
0:00:57.5]} 28. Qc4 {[%clk 0:00:35.3]} 28... Kg7 {[%clk 0:00:37.9]} 29. Be4
{[%clk 0:00:33.2]} 29... Bxc6 {[%clk 0:00:37.4]} 30. dxc6 {[%clk 0:00:32.9]}
30... Rb5 {[%clk 0:00:36.8]} 31. Bd5 {[%clk 0:00:31.1]} 31... f6 {[%clk
0:00:31.3]} 32. Kg2 {[%clk 0:00:29.8]} 32... Ra5 {[%clk 0:00:30.9]} 33. f3
{[%clk 0:00:27.8]} 33... Qb5 {[%clk 0:00:30.2]} 34. Qxb5 {[%clk 0:00:19.2]}
34... Rxb5 {[%clk 0:00:31.1]} 35. Bc4 {[%clk 0:00:19.2]} 35... Ra5 {[%clk
0:00:31.1]} 36. Bd2 {[%clk 0:00:18.7]} 36... d5 {[%clk 0:00:28]} 37. Bb3 {[%clk
0:00:14.1]} 37... Rb5 {[%clk 0:00:26.2]} 38. e4 {[%clk 0:00:11.8]} 38... dxe4
{[%clk 0:00:25.1]} 39. fxe4 {[%clk 0:00:12.2]} 39... Bd6 {[%clk 0:00:23.7]} 40.
Bc4 {[%clk 0:00:10.4]} 40... Rb6 {[%clk 0:00:21.7]} 41. Bd5 {[%clk 0:00:10.9]}
41... Kf8 {[%clk 0:00:18.9]} 42. Be3 {[%clk 0:00:10.9]} 42... Rb5 {[%clk
0:00:18.7]} 43. Kf3 {[%clk 0:00:08.6]} 43... Ke7 {[%clk 0:00:18.6]} 44. Ke2
{[%clk 0:00:09]} 44... Kd8 {[%clk 0:00:15.9]} 45. Kd2 {[%clk 0:00:09.4]} 45...
Kc7 {[%clk 0:00:16.1]} 46. Kc2 {[%clk 0:00:09.7]} 46... Bc5 {[%clk 0:00:16.3]}
47. Bh6 {[%clk 0:00:08.6]} 47... Be7 {[%clk 0:00:12.7]} 48. Kb3 {[%clk
0:00:08.7]} 48... g5 {[%clk 0:00:12.3]} 49. hxg5 {[%clk 0:00:07.6]} 49... fxg5
{[%clk 0:00:12.3]} 50. Kc4 {[%clk 0:00:06.8]} 50... Rc5+ {[%clk 0:00:12]} 51.
Kb3 {[%clk 0:00:07.1]} 51... h4 {[%clk 0:00:11.2]} 52. gxh4 {[%clk 0:00:07.4]}
52... gxh4 {[%clk 0:00:12.1]} 53. Bg7 {[%clk 0:00:08.1]} 53... Bd6 {[%clk
0:00:11.3]} 54. Bf6 {[%clk 0:00:07.8]} 54... h3 {[%clk 0:00:11.1]} 55. d4 {[%clk
0:00:06.6]} 55... Rxd5 {[%clk 0:00:08.6]} 56. exd5 {[%clk 0:00:05.4]} 56... exd4
{[%clk 0:00:07.6]} 57. Bxd4 {[%clk 0:00:02.3]} 57... h2 {[%clk 0:00:07.8]} 0-1

[Event "*** Titled Tuesday Blitz"]
[Site "Chess.com"]
[Date "2020.05.26"]
[Round "5"]
[White "BogdanDeac"]
[Black "Shankovskyi"]
[Result "1-0"]
[WhiteElo "2948"]
[BlackElo "2540"]
[TimeControl "180+1"]
[EndTime "10:57:29 PDT"]
[Termination "BogdanDeac won by resignation"]

1. e4 {[%clk 0:03:00.9]} 1... e5 {[%clk 0:02:59.8]} 2. Nf3 {[%clk 0:03:00.6]}
2... Nc6 {[%clk 0:03:00.3]} 3. Bb5 {[%clk 0:03:00]} 3... a6 {[%clk 0:02:59.3]}
4. Ba4 {[%clk 0:03:00]} 4... Nf6 {[%clk 0:02:59.4]} 5. O-O {[%clk 0:02:59.8]}
5... Be7 {[%clk 0:02:59.9]} 6. d3 {[%clk 0:02:57.4]} 6... b5 {[%clk 0:02:55.4]}
7. Bb3 {[%clk 0:02:57.1]} 7... d6 {[%clk 0:02:55.8]} 8. a3 {[%clk 0:02:57.2]}
8... O-O {[%clk 0:02:55.6]} 9. Nc3 {[%clk 0:02:57.1]} 9... Nb8 {[%clk
0:02:50.9]} 10. a4 {[%clk 0:02:52.2]} 10... b4 {[%clk 0:02:50.5]} 11. Nd5 {[%clk
0:02:51.7]} 11... Nxd5 {[%clk 0:02:48]} 12. Bxd5 {[%clk 0:02:52.1]} 12... c6
{[%clk 0:02:46.6]} 13. Bb3 {[%clk 0:02:51]} 13... Be6 {[%clk 0:02:42.7]} 14.
Bxe6 {[%clk 0:02:42]} 14... fxe6 {[%clk 0:02:43.6]} 15. d4 {[%clk 0:02:42.2]}
15... exd4 {[%clk 0:01:52.4]} 16. Nxd4 {[%clk 0:02:40.8]} 16... Qc8 {[%clk
0:01:51.8]} 17. Qg4 {[%clk 0:02:36.6]} 17... Rf6 {[%clk 0:01:34]} 18. Qh3 {[%clk
0:02:27]} 18... c5 {[%clk 0:01:19.8]} 19. e5 {[%clk 0:02:03.1]} 19... dxe5
{[%clk 0:00:37.5]} 20. Nf3 {[%clk 0:02:02.7]} 20... Nc6 {[%clk 0:00:35.8]} 21.
Ng5 {[%clk 0:02:01.8]} 21... Rh6 {[%clk 0:00:27.4]} 22. Qd3 {[%clk 0:01:51.7]}
22... Bxg5 {[%clk 0:00:25.8]} 23. Bxg5 {[%clk 0:01:49.6]} 23... Rg6 {[%clk
0:00:26.7]} 24. Be3 {[%clk 0:01:48.7]} 24... Nd4 {[%clk 0:00:23.2]} 25. Qe4
{[%clk 0:01:48.4]} 25... Ra7 {[%clk 0:00:19]} 26. c3 {[%clk 0:01:42.2]} 26...
bxc3 {[%clk 0:00:18.2]} 27. bxc3 {[%clk 0:01:41.8]} 27... Ne2+ {[%clk
0:00:18.2]} 28. Kh1 {[%clk 0:01:38.1]} 28... Nxc3 {[%clk 0:00:18.8]} 29. Qxe5
{[%clk 0:01:36.1]} 29... Nd5 {[%clk 0:00:19.3]} 30. Rac1 {[%clk 0:01:35.6]}
30... Rc7 {[%clk 0:00:17.5]} 31. Bd2 {[%clk 0:01:31.3]} 31... c4 {[%clk
0:00:16.8]} 32. f4 {[%clk 0:01:27.7]} 32... Rf6 {[%clk 0:00:16.1]} 33. f5 {[%clk
0:01:27.4]} 33... Qd7 {[%clk 0:00:12.6]} 34. Ba5 {[%clk 0:01:19]} 34... Rc8
{[%clk 0:00:11.2]} 35. fxe6 {[%clk 0:01:09]} 35... Rxe6 {[%clk 0:00:11.6]} 36.
Qd4 {[%clk 0:01:07.3]} 36... Rd6 {[%clk 0:00:07]} 37. Rxc4 {[%clk 0:01:02.1]}
37... Rdc6 {[%clk 0:00:01.1]} 38. Rxc6 {[%clk 0:00:58.3]} 38... Qxc6 {[%clk
0:00:02]} 39. h3 {[%clk 0:00:49.3]} 39... Qc4 {[%clk 0:00:02.5]} 40. Qf2 {[%clk
0:00:45.1]} 40... Nf6 {[%clk 0:00:02.5]} 41. Ra1 {[%clk 0:00:38.3]} 41... Re8
{[%clk 0:00:02]} 42. Qa2 {[%clk 0:00:34.1]} 42... Qxa2 {[%clk 0:00:01.6]} 43.
Rxa2 {[%clk 0:00:35]} 43... Re4 {[%clk 0:00:01.6]} 44. Kh2 {[%clk 0:00:29.9]}
44... Rc4 {[%clk 0:00:02.2]} 45. Be1 {[%clk 0:00:28.8]} 45... Nd5 {[%clk
0:00:02.6]} 46. a5 {[%clk 0:00:28.7]} 46... Rc5 {[%clk 0:00:02.6]} 47. Rb2
{[%clk 0:00:27.3]} 47... Rb5 {[%clk 0:00:02.6]} 48. Rxb5 {[%clk 0:00:26.2]}
48... axb5 {[%clk 0:00:03.5]} 49. a6 {[%clk 0:00:26.6]} 49... Nc7 {[%clk
0:00:03.2]} 50. a7 {[%clk 0:00:25.9]} 50... Kf7 {[%clk 0:00:03.8]} 51. Kg3
{[%clk 0:00:22.2]} 51... Ke6 {[%clk 0:00:03.6]} 52. Kf4 {[%clk 0:00:21.2]} 52...
Kd5 {[%clk 0:00:03.9]} 53. Ba5 {[%clk 0:00:20.7]} 53... Na8 {[%clk 0:00:03.4]}
54. Bc3 {[%clk 0:00:20.5]} 54... g6 {[%clk 0:00:02.8]} 55. Kg5 {[%clk
0:00:20.5]} 55... Kc4 {[%clk 0:00:03.2]} 56. Ba1 {[%clk 0:00:20.3]} 56... b4
{[%clk 0:00:03.1]} 57. Kh6 {[%clk 0:00:20.4]} 57... b3 {[%clk 0:00:03.2]} 58.
Kxh7 {[%clk 0:00:20.5]} 58... g5 {[%clk 0:00:03]} 59. Kg6 {[%clk 0:00:20.6]} 1-0

[Event "*** Titled Tuesday Blitz"]
[Site "Chess.com"]
[Date "2020.05.26"]
[Round "5"]
[White "dennisodessa"]
[Black "awesomevishesh"]
[Result "1-0"]
[WhiteElo "2243"]
[BlackElo "2395"]
[TimeControl "180+1"]
[EndTime "10:57:30 PDT"]
[Termination "dennisodessa won on time"]

1. d4 {[%clk 0:03:00]} 1... Nf6 {[%clk 0:02:59.7]} 2. c4 {[%clk 0:02:59.7]} 2...
g6 {[%clk 0:02:59.8]} 3. Nc3 {[%clk 0:03:00]} 3... Bg7 {[%clk 0:02:59.4]} 4. e4
{[%clk 0:03:00.6]} 4... d6 {[%clk 0:02:59.4]} 5. f3 {[%clk 0:03:01.3]} 5... O-O
{[%clk 0:02:59.5]} 6. Be3 {[%clk 0:03:01.9]} 6... a6 {[%clk 0:02:59.9]} 7. Bd3
{[%clk 0:03:00.6]} 7... Nbd7 {[%clk 0:02:59.8]} 8. Qd2 {[%clk 0:02:59.2]} 8...
c5 {[%clk 0:02:59.7]} 9. Nge2 {[%clk 0:02:59.4]} 9... b6 {[%clk 0:02:57]} 10.
Bh6 {[%clk 0:02:56.6]} 10... cxd4 {[%clk 0:02:54.8]} 11. Nxd4 {[%clk 0:02:54.7]}
11... Ne5 {[%clk 0:02:50.7]} 12. Be2 {[%clk 0:02:51]} 12... Bb7 {[%clk
0:02:42.6]} 13. Bxg7 {[%clk 0:02:50.5]} 13... Kxg7 {[%clk 0:02:42.5]} 14. O-O
{[%clk 0:02:51.1]} 14... Rc8 {[%clk 0:02:41.6]} 15. b3 {[%clk 0:02:48.7]} 15...
e6 {[%clk 0:02:34.2]} 16. f4 {[%clk 0:02:27.7]} 16... Ned7 {[%clk 0:02:32.1]}
17. Bf3 {[%clk 0:02:25.3]} 17... Qc7 {[%clk 0:02:26.1]} 18. Rac1 {[%clk
0:02:23.4]} 18... Nc5 {[%clk 0:02:15.9]} 19. Rfe1 {[%clk 0:02:22.9]} 19... Rfd8
{[%clk 0:02:09.9]} 20. f5 {[%clk 0:02:21.5]} 20... e5 {[%clk 0:02:02.9]} 21. Nc2
{[%clk 0:02:20.9]} 21... b5 {[%clk 0:02:01.4]} 22. Ne3 {[%clk 0:01:48.5]} 22...
Qb6 {[%clk 0:01:49.4]} 23. Ncd5 {[%clk 0:01:17.8]} 23... Bxd5 {[%clk 0:01:44.5]}
24. cxd5 {[%clk 0:01:16.1]} 24... Ncxe4 {[%clk 0:01:41.8]} 25. Bxe4 {[%clk
0:01:13.2]} 25... Nxe4 {[%clk 0:01:41.6]} 26. Qd3 {[%clk 0:01:13.8]} 26... Nf6
{[%clk 0:01:32.5]} 27. Kh1 {[%clk 0:01:02.9]} 27... Rc7 {[%clk 0:01:02]} 28.
fxg6 {[%clk 0:00:30]} 28... fxg6 {[%clk 0:00:54.5]} 29. Rf1 {[%clk 0:00:09.2]}
29... Rdc8 {[%clk 0:00:52.8]} 30. Rxc7+ {[%clk 0:00:08.8]} 30... Qxc7 {[%clk
0:00:53.7]} 31. Qe2 {[%clk 0:00:08.5]} 31... Rf8 {[%clk 0:00:48.2]} 32. h4
{[%clk 0:00:03]} 32... Ne4 {[%clk 0:00:46.7]} 33. Kh2 {[%clk 0:00:03.3]} 33...
Qe7 {[%clk 0:00:45.3]} 34. g3 {[%clk 0:00:03.1]} 34... Nf6 {[%clk 0:00:35.1]}
35. Qd3 {[%clk 0:00:02]} 35... Rc8 {[%clk 0:00:33]} 36. Qe2 {[%clk 0:00:01.6]}
36... Rc3 {[%clk 0:00:32.4]} 37. Qf2 {[%clk 0:00:02]} 37... Ne4 {[%clk
0:00:30.2]} 38. Qf3 {[%clk 0:00:02.1]} 38... Nd2 {[%clk 0:00:28.8]} 39. Nf5+
{[%clk 0:00:02.5]} 39... gxf5 {[%clk 0:00:27.7]} 40. Qxc3 {[%clk 0:00:03.4]}
40... Nxf1+ {[%clk 0:00:27]} 41. Kg2 {[%clk 0:00:04.3]} 41... Nxg3 {[%clk
0:00:20.6]} 42. Qxg3+ {[%clk 0:00:05.2]} 42... Kf7 {[%clk 0:00:17.3]} 43. Qf3
{[%clk 0:00:05.6]} 43... Qf6 {[%clk 0:00:15.6]} 44. Kh3 {[%clk 0:00:05.5]} 44...
Qg6 {[%clk 0:00:15.2]} 45. Qc3 {[%clk 0:00:05]} 45... Qg4+ {[%clk 0:00:14.8]}
46. Kh2 {[%clk 0:00:05.6]} 46... Qxh4+ {[%clk 0:00:12.9]} 47. Kg2 {[%clk
0:00:06.1]} 47... Qe4+ {[%clk 0:00:12.7]} 48. Kh2 {[%clk 0:00:05.3]} 1-0

[Event "*** Titled Tuesday Blitz"]
[Site "Chess.com"]
[Date "2020.05.26"]
[Round "5"]
[White "Sippp"]
[Black "RubensCezila"]
[Result "1-0"]
[WhiteElo "2686"]
[BlackElo "2463"]
[TimeControl "180+1"]
[EndTime "10:57:31 PDT"]
[Termination "Sippp won by resignation"]

1. e4 {[%clk 0:03:00.8]} 1... c6 {[%clk 0:02:59.7]} 2. d4 {[%clk 0:03:00.8]}
2... d5 {[%clk 0:02:59.7]} 3. Nc3 {[%clk 0:02:57.7]} 3... dxe4 {[%clk
0:02:59.6]} 4. Nxe4 {[%clk 0:02:58.6]} 4... Nf6 {[%clk 0:03:00.1]} 5. Nxf6+
{[%clk 0:02:58.7]} 5... exf6 {[%clk 0:03:01]} 6. c3 {[%clk 0:02:58.6]} 6... Bd6
{[%clk 0:03:00.8]} 7. Bd3 {[%clk 0:02:59]} 7... O-O {[%clk 0:03:01.2]} 8. Ne2
{[%clk 0:02:59.4]} 8... Re8 {[%clk 0:03:00.9]} 9. Qc2 {[%clk 0:02:59.8]} 9... h5
{[%clk 0:03:00.5]} 10. Be3 {[%clk 0:02:58.7]} 10... Nd7 {[%clk 0:02:58.5]} 11.
O-O-O {[%clk 0:02:53]} 11... Nf8 {[%clk 0:02:58.2]} 12. Ng3 {[%clk 0:02:52]}
12... g6 {[%clk 0:02:40.7]} 13. Ne4 {[%clk 0:02:47.7]} 13... Be7 {[%clk
0:02:17.7]} 14. Kb1 {[%clk 0:02:42.6]} 14... f5 {[%clk 0:02:10.9]} 15. Nd2
{[%clk 0:02:38.1]} 15... Bd6 {[%clk 0:02:01.8]} 16. Nc4 {[%clk 0:02:35.4]} 16...
Bc7 {[%clk 0:01:58.6]} 17. h4 {[%clk 0:02:29.5]} 17... f4 {[%clk 0:01:49.5]} 18.
Bc1 {[%clk 0:02:27.1]} 18... Be6 {[%clk 0:01:49.1]} 19. Ne5 {[%clk 0:02:18.6]}
19... Bxe5 {[%clk 0:01:46.2]} 20. dxe5 {[%clk 0:02:19.5]} 20... Qd5 {[%clk
0:01:46.5]} 21. b3 {[%clk 0:02:09.4]} 21... Qxe5 {[%clk 0:01:45.9]} 22. c4
{[%clk 0:02:07.3]} 22... Bf5 {[%clk 0:01:37.7]} 23. Bb2 {[%clk 0:02:05.9]} 23...
Bxd3 {[%clk 0:01:34.9]} 24. Rxd3 {[%clk 0:02:05.8]} 24... Qf5 {[%clk 0:01:31.3]}
25. Rhd1 {[%clk 0:01:54.7]} 25... Re6 {[%clk 0:01:22.3]} 26. a3 {[%clk
0:01:23.2]} 26... Rae8 {[%clk 0:01:19.7]} 27. R1d2 {[%clk 0:01:20.8]} 27... b5
{[%clk 0:00:52.9]} 28. Ka2 {[%clk 0:01:19]} 28... bxc4 {[%clk 0:00:51.7]} 29.
Qxc4 {[%clk 0:01:19.9]} 29... Qb5 {[%clk 0:00:35.2]} 30. Qc3 {[%clk 0:01:17.9]}
30... f6 {[%clk 0:00:33.4]} 31. a4 {[%clk 0:01:11.8]} 31... Qf5 {[%clk
0:00:30.9]} 32. Qc4 {[%clk 0:01:11.7]} 32... Kh7 {[%clk 0:00:27.6]} 33. Rd4
{[%clk 0:01:08.7]} 33... g5 {[%clk 0:00:27]} 34. hxg5 {[%clk 0:01:06.6]} 34...
fxg5 {[%clk 0:00:24.6]} 35. Qc3 {[%clk 0:01:05.4]} 35... R8e7 {[%clk 0:00:16.9]}
36. Rd8 {[%clk 0:00:58.6]} 36... Ng6 {[%clk 0:00:17.1]} 37. R2d7 {[%clk
0:00:48]} 37... Qf7 {[%clk 0:00:17.3]} 38. Rd6 {[%clk 0:00:32.3]} 38... Rxd6
{[%clk 0:00:12.7]} 39. Rxd6 {[%clk 0:00:31.9]} 39... Ne5 {[%clk 0:00:12.4]} 40.
Qc2+ {[%clk 0:00:31.7]} 40... Ng6 {[%clk 0:00:11.2]} 41. Rf6 {[%clk 0:00:29.2]}
41... Qe8 {[%clk 0:00:08.7]} 42. Qf5 {[%clk 0:00:28.6]} 42... Re2 {[%clk
0:00:08.7]} 43. Qxg5 {[%clk 0:00:20.9]} 43... Rxb2+ {[%clk 0:00:08.8]} 44. Kxb2
{[%clk 0:00:20.1]} 44... Qe5+ {[%clk 0:00:09.7]} 45. Qxe5 {[%clk 0:00:20]} 45...
Nxe5 {[%clk 0:00:10.6]} 46. Kc3 {[%clk 0:00:18.7]} 46... f3 {[%clk 0:00:08.9]}
47. gxf3 {[%clk 0:00:17.2]} 47... h4 {[%clk 0:00:06.3]} 48. Rf5 {[%clk
0:00:17.1]} 48... Ng6 {[%clk 0:00:06.2]} 49. Rh5+ {[%clk 0:00:17.5]} 49... Kg7
{[%clk 0:00:06.5]} 50. f4 {[%clk 0:00:17.1]} 50... Kf6 {[%clk 0:00:03.4]} 51. f5
{[%clk 0:00:17.3]} 51... Ne7 {[%clk 0:00:03]} 52. Rxh4 {[%clk 0:00:16.9]} 52...
Kxf5 {[%clk 0:00:03.5]} 53. Rh6 {[%clk 0:00:16]} 53... Ke5 {[%clk 0:00:02.8]}
54. Kc4 {[%clk 0:00:15.4]} 54... Nf5 {[%clk 0:00:01.1]} 55. Rxc6 {[%clk
0:00:14.9]} 1-0

[Event "*** Titled Tuesday Blitz"]
[Site "Chess.com"]
[Date "2020.05.26"]
[Round "5"]
[White "Sergey85Rodchenkov"]
[Black "rynos0411"]
[Result "1/2-1/2"]
[WhiteElo "2516"]
[BlackElo "2357"]
[TimeControl "180+1"]
[EndTime "10:57:32 PDT"]
[Termination "Game drawn - insufficient material"]

1. e4 {[%clk 0:01:55.4]} 1... c6 {[%clk 0:02:58.7]} 2. c4 {[%clk 0:01:54.6]}
2... d5 {[%clk 0:02:58.1]} 3. exd5 {[%clk 0:01:55.2]} 3... cxd5 {[%clk
0:02:58.1]} 4. cxd5 {[%clk 0:01:55.8]} 4... Nf6 {[%clk 0:02:58.4]} 5. Bb5+
{[%clk 0:01:49.2]} 5... Bd7 {[%clk 0:02:56.1]} 6. Bc4 {[%clk 0:01:48]} 6... Bf5
{[%clk 0:02:36.4]} 7. Nc3 {[%clk 0:01:45.1]} 7... Nbd7 {[%clk 0:02:36.3]} 8. Nf3
{[%clk 0:01:37.4]} 8... a6 {[%clk 0:02:28.4]} 9. O-O {[%clk 0:01:03.8]} 9... b5
{[%clk 0:02:24]} 10. Bb3 {[%clk 0:01:03.7]} 10... Nb6 {[%clk 0:02:24.1]} 11. Nd4
{[%clk 0:01:01.3]} 11... Bg4 {[%clk 0:02:10.5]} 12. f3 {[%clk 0:00:59.6]} 12...
Bd7 {[%clk 0:01:54.7]} 13. Re1 {[%clk 0:00:58.5]} 13... g6 {[%clk 0:01:53.1]}
14. Ne4 {[%clk 0:00:56.4]} 14... Bg7 {[%clk 0:01:37.9]} 15. Nc6 {[%clk
0:00:42.1]} 15... Bxc6 {[%clk 0:01:26.1]} 16. dxc6 {[%clk 0:00:43]} 16... O-O
{[%clk 0:01:23.3]} 17. d4 {[%clk 0:00:42.7]} 17... Nbd5 {[%clk 0:01:03.5]} 18.
Bg5 {[%clk 0:00:41.1]} 18... Rc8 {[%clk 0:00:57.9]} 19. Rc1 {[%clk 0:00:40.4]}
19... Qb6 {[%clk 0:00:54.7]} 20. Nxf6+ {[%clk 0:00:32.2]} 20... exf6 {[%clk
0:00:54]} 21. Bxd5 {[%clk 0:00:29.4]} 21... fxg5 {[%clk 0:00:54]} 22. Kh1 {[%clk
0:00:28.8]} 22... Rfd8 {[%clk 0:00:53.2]} 23. Qb3 {[%clk 0:00:28.6]} 23... Rc7
{[%clk 0:00:51.5]} 24. Re2 {[%clk 0:00:24.4]} 24... Qxd4 {[%clk 0:00:50.7]} 25.
Rd1 {[%clk 0:00:17.6]} 25... Qf6 {[%clk 0:00:50.3]} 26. Red2 {[%clk 0:00:15.8]}
26... Re8 {[%clk 0:00:45.8]} 27. Be4 {[%clk 0:00:15.2]} 27... h5 {[%clk
0:00:33.8]} 28. Rd7 {[%clk 0:00:14.8]} 28... Rxd7 {[%clk 0:00:31.1]} 29. Rxd7
{[%clk 0:00:13.5]} 29... Re7 {[%clk 0:00:23.3]} 30. Qd5 {[%clk 0:00:11.4]} 30...
Rxd7 {[%clk 0:00:19.1]} 31. cxd7 {[%clk 0:00:10.9]} 31... Qd8 {[%clk 0:00:18.3]}
32. Bf5 {[%clk 0:00:11.2]} 32... gxf5 {[%clk 0:00:18]} 33. g3 {[%clk 0:00:10]}
33... f4 {[%clk 0:00:13]} 34. Kg2 {[%clk 0:00:08.9]} 34... fxg3 {[%clk 0:00:13]}
35. hxg3 {[%clk 0:00:09.8]} 35... Kf8 {[%clk 0:00:12.6]} 36. Qd6+ {[%clk
0:00:09.5]} 36... Kg8 {[%clk 0:00:12.9]} 37. f4 {[%clk 0:00:09]} 37... gxf4
{[%clk 0:00:12.8]} 38. gxf4 {[%clk 0:00:09.9]} 38... Bf6 {[%clk 0:00:13.3]} 39.
Kf3 {[%clk 0:00:09.4]} 39... Qe7 {[%clk 0:00:13.6]} 40. Qd5 {[%clk 0:00:09.3]}
40... a5 {[%clk 0:00:12.4]} 41. Qxb5 {[%clk 0:00:08.9]} 41... Kg7 {[%clk
0:00:09.7]} 42. Qc6 {[%clk 0:00:08.8]} 42... Qe1 {[%clk 0:00:08.8]} 43. Qxf6+
{[%clk 0:00:07.6]} 43... Kxf6 {[%clk 0:00:09.7]} 44. d8=Q+ {[%clk 0:00:08]}
44... Kg7 {[%clk 0:00:07.6]} 45. Qd4+ {[%clk 0:00:08.3]} 45... Kg8 {[%clk
0:00:07.5]} 46. Qd8+ {[%clk 0:00:07.4]} 46... Kg7 {[%clk 0:00:07.7]} 47. Qg5+
{[%clk 0:00:07.6]} 47... Kf8 {[%clk 0:00:08.2]} 48. Qg2 {[%clk 0:00:07.6]} 48...
Qd1+ {[%clk 0:00:05.7]} 49. Kg3 {[%clk 0:00:07.7]} 49... Qg4+ {[%clk 0:00:05.3]}
50. Kh2 {[%clk 0:00:05.7]} 50... Qxf4+ {[%clk 0:00:06.2]} 51. Kh3 {[%clk
0:00:05.9]} 51... f5 {[%clk 0:00:03.1]} 52. Qa8+ {[%clk 0:00:05.2]} 52... Kf7
{[%clk 0:00:03.4]} 53. Qb7+ {[%clk 0:00:05.5]} 53... Kf6 {[%clk 0:00:03.9]} 54.
Qc6+ {[%clk 0:00:05.5]} 54... Kg5 {[%clk 0:00:04.4]} 55. Qg2+ {[%clk 0:00:04.7]}
55... Qg4+ {[%clk 0:00:04.8]} 56. Kh2 {[%clk 0:00:03.9]} 56... Qxg2+ {[%clk
0:00:04.7]} 57. Kxg2 {[%clk 0:00:04.2]} 57... h4 {[%clk 0:00:05.6]} 58. b3
{[%clk 0:00:04.4]} 58... Kf4 {[%clk 0:00:05.9]} 59. a3 {[%clk 0:00:04.9]} 59...
Ke4 {[%clk 0:00:06.3]} 60. b4 {[%clk 0:00:05.4]} 60... axb4 {[%clk 0:00:06.3]}
61. axb4 {[%clk 0:00:06]} 61... Kd5 {[%clk 0:00:06.6]} 62. Kh3 {[%clk
0:00:06.3]} 62... Kc4 {[%clk 0:00:06.9]} 63. Kxh4 {[%clk 0:00:06.6]} 63... Kxb4
{[%clk 0:00:07]} 64. Kg5 {[%clk 0:00:07.2]} 64... Kc4 {[%clk 0:00:07.9]} 65.
Kxf5 {[%clk 0:00:07.4]} 1/2-1/2